[Event "Early-Titled-Tuesday-Blitz-January-23-2024"]
[Site "Chess.com"]
[Date "2024.01.23"]
[Round "8"]
[White "MalyDominator"]
[Black "ChessLebaneseSalah"]
[Result "1-0"]
[WhiteElo "2533"]
[BlackElo "2386"]
[TimeControl "180+1"]
[EndTime "9:27:27 PST"]
[Termination "MalyDominator won on time"]

1. e4 {[%clk 0:03:00.9]} 1... c5 {[%clk 0:02:59.8]} 2. Nf3 {[%clk 0:03:00.8]}
2... d6 {[%clk 0:03:00.1]} 3. d4 {[%clk 0:03:01.3]} 3... cxd4 {[%clk 0:03:01]}
4. Nxd4 {[%clk 0:03:01.2]} 4... Nf6 {[%clk 0:03:01.6]} 5. Nc3 {[%clk 0:03:01.7]}
5... Nc6 {[%clk 0:03:01.7]} 6. Bg5 {[%clk 0:03:00.8]} 6... e6 {[%clk 0:03:01.7]}
7. Qd2 {[%clk 0:03:01]} 7... a6 {[%clk 0:03:01.9]} 8. O-O-O {[%clk 0:03:01.2]}
8... Bd7 {[%clk 0:03:02.1]} 9. f4 {[%clk 0:03:00.3]} 9... Be7 {[%clk 0:03:02.2]}
10. Nf3 {[%clk 0:02:59.7]} 10... b5 {[%clk 0:03:01.4]} 11. Bxf6 {[%clk 0:03:00]}
11... gxf6 {[%clk 0:03:01.3]} 12. Kb1 {[%clk 0:02:56.9]} 12... Qb6 {[%clk
0:03:01.2]} 13. f5 {[%clk 0:02:49.8]} 13... O-O-O {[%clk 0:02:48.4]} 14. fxe6
{[%clk 0:02:49.4]} 14... fxe6 {[%clk 0:02:46.6]} 15. g3 {[%clk 0:02:49.9]} 15...
Ne5 {[%clk 0:02:26.2]} 16. Nd4 {[%clk 0:02:39.4]} 16... b4 {[%clk 0:02:20.9]}
17. Nce2 {[%clk 0:02:39.5]} 17... Kb8 {[%clk 0:02:07.3]} 18. Bh3 {[%clk
0:02:38.4]} 18... d5 {[%clk 0:02:02.3]} 19. exd5 {[%clk 0:02:36.6]} 19... exd5
{[%clk 0:02:00.5]} 20. Bxd7 {[%clk 0:02:35.4]} 20... Rxd7 {[%clk 0:02:01.4]} 21.
Nf4 {[%clk 0:02:35]} 21... Nc4 {[%clk 0:01:56.7]} 22. Qe2 {[%clk 0:02:31.9]}
22... Bc5 {[%clk 0:01:52.2]} 23. Nb3 {[%clk 0:02:26.5]} 23... Rhd8 {[%clk
0:01:22.6]} 24. Nxd5 {[%clk 0:02:25.6]} 24... Qb5 {[%clk 0:00:53.8]} 25. Qf3
{[%clk 0:02:05.4]} 25... Ba7 {[%clk 0:00:34.9]} 26. Nxf6 {[%clk 0:01:50.3]}
26... Rxd1+ {[%clk 0:00:29.7]} 27. Rxd1 {[%clk 0:01:50]} 27... Rxd1+ {[%clk
0:00:28.6]} 28. Qxd1 {[%clk 0:01:49.5]} 28... Bb6 {[%clk 0:00:25.8]} 29. Nd7+
{[%clk 0:01:45.1]} 29... Kb7 {[%clk 0:00:24.1]} 30. Nxb6 {[%clk 0:01:38.7]}
30... Nxb6 {[%clk 0:00:24.1]} 31. Qf3+ {[%clk 0:01:37.2]} 31... Ka7 {[%clk
0:00:20.1]} 32. Nd4 {[%clk 0:01:33.4]} 32... Qd7 {[%clk 0:00:12.2]} 33. Nc6+
{[%clk 0:01:31.7]} 33... Kb7 {[%clk 0:00:08.6]} 34. Nxb4+ {[%clk 0:01:15]} 34...
Kc8 {[%clk 0:00:07.7]} 35. Nd3 {[%clk 0:01:12.1]} 35... Nc4 {[%clk 0:00:05.5]}
36. Qa8+ {[%clk 0:01:09.8]} 36... Kc7 {[%clk 0:00:05.9]} 37. Qa7+ {[%clk
0:01:09.8]} 37... Kc8 {[%clk 0:00:06.5]} 38. Qxa6+ {[%clk 0:01:09.9]} 38... Kd8
{[%clk 0:00:04.2]} 39. Qxc4 {[%clk 0:01:09.2]} 39... Qh3 {[%clk 0:00:05.1]} 40.
Qd4+ {[%clk 0:01:08.7]} 40... Ke8 {[%clk 0:00:04.9]} 41. Qe4+ {[%clk 0:01:08.4]}
41... Kf7 {[%clk 0:00:04.9]} 42. Qf4+ {[%clk 0:01:07.8]} 42... Kg8 {[%clk
0:00:05.1]} 43. a4 {[%clk 0:01:04.4]} 1-0

[Event "Early-Titled-Tuesday-Blitz-January-23-2024"]
[Site "Chess.com"]
[Date "2024.01.23"]
[Round "8"]
[White "crazy_m_attack"]
[Black "sterpfi"]
[Result "0-1"]
[WhiteElo "2451"]
[BlackElo "2262"]
[TimeControl "180+1"]
[EndTime "9:27:27 PST"]
[Termination "sterpfi won by resignation"]

1. e4 {[%clk 0:03:00.9]} 1... c6 {[%clk 0:03:00.3]} 2. d4 {[%clk 0:03:00.3]}
2... d5 {[%clk 0:03:01.2]} 3. Nc3 {[%clk 0:03:01]} 3... dxe4 {[%clk 0:03:01.8]}
4. Nxe4 {[%clk 0:03:01.9]} 4... Nf6 {[%clk 0:03:02.5]} 5. Nxf6+ {[%clk
0:03:02.3]} 5... exf6 {[%clk 0:03:03.4]} 6. c3 {[%clk 0:03:02.9]} 6... Bd6
{[%clk 0:03:03.8]} 7. Bd3 {[%clk 0:03:03.6]} 7... O-O {[%clk 0:03:04.2]} 8. Qc2
{[%clk 0:03:04.3]} 8... Re8+ {[%clk 0:03:04.7]} 9. Ne2 {[%clk 0:03:05]} 9... h5
{[%clk 0:03:05.3]} 10. Be3 {[%clk 0:03:05.6]} 10... Nd7 {[%clk 0:03:03.3]} 11.
O-O-O {[%clk 0:03:05.1]} 11... Nf8 {[%clk 0:03:03]} 12. c4 {[%clk 0:03:05.5]}
12... Be6 {[%clk 0:03:02.4]} 13. Kb1 {[%clk 0:03:05.1]} 13... b5 {[%clk
0:03:01.5]} 14. cxb5 {[%clk 0:02:59.9]} 14... cxb5 {[%clk 0:03:01.3]} 15. Bxb5
{[%clk 0:02:53.4]} 15... Rc8 {[%clk 0:02:51.6]} 16. Qa4 {[%clk 0:02:48.6]} 16...
Re7 {[%clk 0:02:46.9]} 17. Nc3 {[%clk 0:02:42.7]} 17... Qb6 {[%clk 0:02:09.1]}
18. d5 {[%clk 0:02:20.3]} 18... Bf5+ {[%clk 0:02:08.7]} 19. Ka1 {[%clk
0:02:20.4]} 19... Bc5 {[%clk 0:02:08.8]} 20. d6 {[%clk 0:02:05.3]} 20... Rb7
{[%clk 0:01:51.7]} 21. d7 {[%clk 0:01:53.5]} 21... Nxd7 {[%clk 0:01:42.3]} 22.
Rd2 {[%clk 0:01:35.5]} 22... Bxe3 {[%clk 0:01:41]} 23. fxe3 {[%clk 0:01:34.9]}
23... Nc5 {[%clk 0:01:41.3]} 24. Qf4 {[%clk 0:01:26.1]} 24... Qa5 {[%clk
0:01:32.3]} 25. Qxf5 {[%clk 0:01:03.5]} 25... Nb3+ {[%clk 0:01:25.7]} 26. Kb1
{[%clk 0:01:03.8]} 26... Nxd2+ {[%clk 0:01:26.6]} 27. Kc2 {[%clk 0:01:04.3]}
27... Rxc3+ {[%clk 0:01:23.1]} 28. bxc3 {[%clk 0:01:02.8]} 28... Rxb5 {[%clk
0:01:08.3]} 29. Qc8+ {[%clk 0:01:01.8]} 29... Kh7 {[%clk 0:01:08.8]} 30. Rc1
{[%clk 0:00:44.6]} 30... Qxa2+ {[%clk 0:00:50.4]} 31. Kd1 {[%clk 0:00:41.4]}
31... Nb3 {[%clk 0:00:45.4]} 32. Qd7 {[%clk 0:00:39.8]} 32... Nxc1 {[%clk
0:00:33.8]} 33. Qxb5 {[%clk 0:00:39]} 33... Qb3+ {[%clk 0:00:32.7]} 34. Qxb3
{[%clk 0:00:39.3]} 34... Nxb3 {[%clk 0:00:33.6]} 35. Kc2 {[%clk 0:00:40.2]}
35... Nc5 {[%clk 0:00:33.7]} 36. c4 {[%clk 0:00:40.8]} 36... Kg6 {[%clk
0:00:33.4]} 37. Kc3 {[%clk 0:00:41.2]} 37... a5 {[%clk 0:00:32.3]} 38. Kd4
{[%clk 0:00:40.2]} 38... a4 {[%clk 0:00:32.6]} 39. Kc3 {[%clk 0:00:34.1]} 39...
Kf5 {[%clk 0:00:32.5]} 40. Kb4 {[%clk 0:00:34.4]} 40... Ke4 {[%clk 0:00:32.8]}
0-1

[Event "Early-Titled-Tuesday-Blitz-January-23-2024"]
[Site "Chess.com"]
[Date "2024.01.23"]
[Round "8"]
[White "Huragan007"]
[Black "AvitalBor"]
[Result "1-0"]
[WhiteElo "2563"]
[BlackElo "2759"]
[TimeControl "180+1"]
[EndTime "9:27:30 PST"]
[Termination "Huragan007 won on time"]

1. e4 {[%clk 0:02:59.6]} 1... c5 {[%clk 0:02:59.3]} 2. b3 {[%clk 0:02:59.2]}
2... e6 {[%clk 0:02:56.9]} 3. Nf3 {[%clk 0:02:58.2]} 3... d5 {[%clk 0:02:57.8]}
4. exd5 {[%clk 0:02:58.2]} 4... exd5 {[%clk 0:02:58.7]} 5. Bb5+ {[%clk
0:02:58.6]} 5... Bd7 {[%clk 0:02:58.1]} 6. Bxd7+ {[%clk 0:02:58.3]} 6... Nxd7
{[%clk 0:02:59]} 7. O-O {[%clk 0:02:58.5]} 7... Ngf6 {[%clk 0:02:59.5]} 8. d4
{[%clk 0:02:58.6]} 8... Be7 {[%clk 0:02:59.2]} 9. Bg5 {[%clk 0:02:56]} 9... O-O
{[%clk 0:02:57.1]} 10. Qd3 {[%clk 0:02:47.1]} 10... h6 {[%clk 0:02:57.3]} 11.
Bh4 {[%clk 0:02:46.5]} 11... Re8 {[%clk 0:02:50.3]} 12. Nbd2 {[%clk 0:02:40.9]}
12... Qb6 {[%clk 0:02:50]} 13. Rad1 {[%clk 0:02:36.6]} 13... Bf8 {[%clk
0:02:45.1]} 14. c4 {[%clk 0:02:32.1]} 14... cxd4 {[%clk 0:02:34.9]} 15. Qxd4
{[%clk 0:02:16.4]} 15... Bc5 {[%clk 0:02:03.6]} 16. Qd3 {[%clk 0:01:44.6]} 16...
Qa6 {[%clk 0:02:01.7]} 17. Qf5 {[%clk 0:01:34.7]} 17... Qxa2 {[%clk 0:01:28]}
18. Ra1 {[%clk 0:01:27.5]} 18... Qb2 {[%clk 0:01:25.6]} 19. Rfb1 {[%clk
0:01:21.3]} 19... Qc3 {[%clk 0:01:22.5]} 20. Rc1 {[%clk 0:01:18.8]} 20... Qb4
{[%clk 0:01:05.9]} 21. cxd5 {[%clk 0:01:18.8]} 21... g6 {[%clk 0:00:57.6]} 22.
Qd3 {[%clk 0:01:14.2]} 22... Ng4 {[%clk 0:00:43.4]} 23. Rc4 {[%clk 0:01:01.5]}
23... Qb5 {[%clk 0:00:30.8]} 24. Qc3 {[%clk 0:00:40.1]} 24... Nge5 {[%clk
0:00:22.9]} 25. Nxe5 {[%clk 0:00:37.3]} 25... Rxe5 {[%clk 0:00:23.8]} 26. Ra5
{[%clk 0:00:34.7]} 26... Qb6 {[%clk 0:00:12.7]} 27. Raxc5 {[%clk 0:00:30.6]}
27... Rae8 {[%clk 0:00:02.5]} 28. Rc8 {[%clk 0:00:25.6]} 1-0

[Event "Early-Titled-Tuesday-Blitz-January-23-2024"]
[Site "Chess.com"]
[Date "2024.01.23"]
[Round "8"]
[White "tarno17"]
[Black "arnash_bauyrzhan"]
[Result "0-1"]
[WhiteElo "2075"]
[BlackElo "2201"]
[TimeControl "180+1"]
[EndTime "9:27:31 PST"]
[Termination "arnash_bauyrzhan won by checkmate"]

1. e4 {[%clk 0:03:00.9]} 1... c5 {[%clk 0:02:59.4]} 2. Nf3 {[%clk 0:02:59.9]}
2... e6 {[%clk 0:02:59.5]} 3. d3 {[%clk 0:02:56.9]} 3... Nc6 {[%clk 0:02:58.8]}
4. Nc3 {[%clk 0:02:56.8]} 4... d5 {[%clk 0:02:56.3]} 5. g3 {[%clk 0:02:52.8]}
5... Nf6 {[%clk 0:02:54.6]} 6. exd5 {[%clk 0:02:52.3]} 6... Nxd5 {[%clk
0:02:53.7]} 7. Ne4 {[%clk 0:02:46.3]} 7... Be7 {[%clk 0:02:52.6]} 8. Bg2 {[%clk
0:02:45.3]} 8... O-O {[%clk 0:02:52.1]} 9. O-O {[%clk 0:02:44.3]} 9... Nf6
{[%clk 0:02:41.7]} 10. Nfg5 {[%clk 0:02:11.5]} 10... h6 {[%clk 0:02:37.7]} 11.
Nxf6+ {[%clk 0:02:10.9]} 11... Bxf6 {[%clk 0:02:36.4]} 12. Ne4 {[%clk
0:02:11.3]} 12... Qe7 {[%clk 0:02:30.9]} 13. Qg4 {[%clk 0:02:04.1]} 13... e5
{[%clk 0:02:14.4]} 14. Qd1 {[%clk 0:01:39]} 14... Bf5 {[%clk 0:01:55.7]} 15. Be3
{[%clk 0:01:31.6]} 15... Nd4 {[%clk 0:01:38.6]} 16. Nxf6+ {[%clk 0:01:27.7]}
16... Qxf6 {[%clk 0:01:37.2]} 17. c3 {[%clk 0:01:20.9]} 17... Ne6 {[%clk
0:01:34.1]} 18. Bxb7 {[%clk 0:01:18.9]} 18... Rab8 {[%clk 0:01:33.2]} 19. Bd5
{[%clk 0:01:19.2]} 19... Rxb2 {[%clk 0:01:27.3]} 20. Qc1 {[%clk 0:01:04.1]}
20... Rfb8 {[%clk 0:01:16.5]} 21. Bb3 {[%clk 0:00:49.5]} 21... R2xb3 {[%clk
0:01:02.2]} 22. axb3 {[%clk 0:00:49.3]} 22... Bh3 {[%clk 0:01:01.2]} 23. f4
{[%clk 0:00:44.2]} 23... Bxf1 {[%clk 0:00:57.4]} 24. Qxf1 {[%clk 0:00:43.6]}
24... exf4 {[%clk 0:00:56.8]} 25. Bxf4 {[%clk 0:00:41.1]} 25... Rxb3 {[%clk
0:00:51.3]} 26. Rxa7 {[%clk 0:00:36.2]} 26... Qxc3 {[%clk 0:00:50.9]} 27. Ra8+
{[%clk 0:00:26.7]} 27... Kh7 {[%clk 0:00:50.5]} 28. Ra1 {[%clk 0:00:17.8]} 28...
Qd4+ {[%clk 0:00:49.3]} 29. Qf2 {[%clk 0:00:15.7]} 29... Qxa1+ {[%clk 0:00:48]}
30. Kg2 {[%clk 0:00:08.4]} 30... Rb2 {[%clk 0:00:48.2]} 31. Be3 {[%clk
0:00:04.9]} 31... Rxf2+ {[%clk 0:00:47.7]} 32. Bxf2 {[%clk 0:00:05.8]} 32... Nd4
{[%clk 0:00:46.9]} 33. g4 {[%clk 0:00:05.7]} 33... Qd1 {[%clk 0:00:46.1]} 34. h4
{[%clk 0:00:06.3]} 34... Qf3+ {[%clk 0:00:45.8]} 35. Kg1 {[%clk 0:00:07.2]}
35... Ne2+ {[%clk 0:00:45.3]} 36. Kf1 {[%clk 0:00:08.1]} 36... Ng3+ {[%clk
0:00:44.5]} 37. Kg1 {[%clk 0:00:08.6]} 37... Qh1# {[%clk 0:00:44.5]} 0-1

[Event "Early-Titled-Tuesday-Blitz-January-23-2024"]
[Site "Chess.com"]
[Date "2024.01.23"]
[Round "8"]
[White "PenguinPacks"]
[Black "ViratKohl_i"]
[Result "0-1"]
[WhiteElo "2435"]
[BlackElo "2608"]
[TimeControl "180+1"]
[EndTime "9:27:35 PST"]
[Termination "ViratKohl_i won by checkmate"]

1. d4 {[%clk 0:03:00.9]} 1... d5 {[%clk 0:02:58.1]} 2. Nc3 {[%clk 0:03:01.3]}
2... Nf6 {[%clk 0:02:56.1]} 3. Bf4 {[%clk 0:03:01.3]} 3... c5 {[%clk 0:02:55.8]}
4. e3 {[%clk 0:03:01.8]} 4... cxd4 {[%clk 0:02:54.4]} 5. exd4 {[%clk 0:03:02.7]}
5... a6 {[%clk 0:02:54.4]} 6. Nf3 {[%clk 0:02:46.5]} 6... Nc6 {[%clk 0:02:51.2]}
7. Ne5 {[%clk 0:02:46.4]} 7... Bd7 {[%clk 0:02:50.8]} 8. Be2 {[%clk 0:02:40.4]}
8... e6 {[%clk 0:02:49.9]} 9. O-O {[%clk 0:02:40.1]} 9... Bb4 {[%clk 0:02:46.4]}
10. Nb1 {[%clk 0:02:36]} 10... O-O {[%clk 0:02:44.6]} 11. c3 {[%clk 0:02:36]}
11... Be7 {[%clk 0:02:42.7]} 12. Nd2 {[%clk 0:02:36.6]} 12... Rc8 {[%clk
0:02:36.4]} 13. Ndf3 {[%clk 0:02:34.5]} 13... Nxe5 {[%clk 0:02:31.2]} 14. Nxe5
{[%clk 0:02:35.4]} 14... Be8 {[%clk 0:02:28.6]} 15. Bd3 {[%clk 0:02:33.1]} 15...
Ne4 {[%clk 0:02:25.8]} 16. f3 {[%clk 0:02:32]} 16... Nd6 {[%clk 0:02:25.2]} 17.
Qe2 {[%clk 0:02:26]} 17... f6 {[%clk 0:02:22.3]} 18. Ng4 {[%clk 0:02:25.5]}
18... Bf7 {[%clk 0:02:13.6]} 19. Rae1 {[%clk 0:02:13.5]} 19... Re8 {[%clk
0:02:05.3]} 20. Qf2 {[%clk 0:02:12.6]} 20... Nf5 {[%clk 0:01:57.2]} 21. h4
{[%clk 0:02:09.3]} 21... Qd7 {[%clk 0:01:48.9]} 22. Nh2 {[%clk 0:02:06.4]} 22...
Bd6 {[%clk 0:01:45.7]} 23. Bxd6 {[%clk 0:02:06.1]} 23... Nxd6 {[%clk 0:01:38.4]}
24. Qc2 {[%clk 0:02:04.9]} 24... Nf5 {[%clk 0:01:34]} 25. g4 {[%clk 0:01:56.6]}
25... Nxh4 {[%clk 0:01:32.4]} 26. Bxh7+ {[%clk 0:01:57]} 26... Kf8 {[%clk
0:01:29.8]} 27. Kf2 {[%clk 0:01:55.2]} 27... Qd6 {[%clk 0:01:25.8]} 28. Rh1
{[%clk 0:01:54.7]} 28... f5 {[%clk 0:01:11]} 29. Nf1 {[%clk 0:01:39.7]} 29... g5
{[%clk 0:01:09.6]} 30. gxf5 {[%clk 0:01:36]} 30... exf5 {[%clk 0:01:08.7]} 31.
Rxe8+ {[%clk 0:01:36.4]} 31... Rxe8 {[%clk 0:01:07.6]} 32. Bxf5 {[%clk 0:01:37]}
32... Qf6 {[%clk 0:00:48.4]} 33. Rxh4 {[%clk 0:00:58.7]} 33... gxh4 {[%clk
0:00:46.9]} 34. Ne3 {[%clk 0:00:58.7]} 34... Qg5 {[%clk 0:00:33.5]} 35. Ng4
{[%clk 0:00:55.7]} 35... Bh5 {[%clk 0:00:24.5]} 36. Ne5 {[%clk 0:00:40.3]} 36...
Qg3+ {[%clk 0:00:23.3]} 37. Ke3 {[%clk 0:00:40]} 37... Qxf3+ {[%clk 0:00:19.8]}
38. Kd2 {[%clk 0:00:38.9]} 38... Qf2+ {[%clk 0:00:19.2]} 39. Kc1 {[%clk
0:00:38.9]} 39... Qe1+ {[%clk 0:00:19.2]} 40. Qd1 {[%clk 0:00:32.4]} 40... Qxd1#
{[%clk 0:00:19.5]} 0-1

[Event "Early-Titled-Tuesday-Blitz-January-23-2024"]
[Site "Chess.com"]
[Date "2024.01.23"]
[Round "8"]
[White "kekic76"]
[Black "verrbaa"]
[Result "1-0"]
[WhiteElo "2348"]
[BlackElo "2484"]
[TimeControl "180+1"]
[EndTime "9:27:36 PST"]
[Termination "kekic76 won by resignation"]

1. e4 {[%clk 0:03:00.8]} 1... e5 {[%clk 0:02:56.7]} 2. Nf3 {[%clk 0:03:00.7]}
2... Nc6 {[%clk 0:02:56.5]} 3. d4 {[%clk 0:03:00.4]} 3... exd4 {[%clk
0:02:55.3]} 4. Nxd4 {[%clk 0:03:01.3]} 4... Qf6 {[%clk 0:02:54.9]} 5. Be3 {[%clk
0:02:59.9]} 5... Bc5 {[%clk 0:02:49.3]} 6. c3 {[%clk 0:02:58.9]} 6... Nge7
{[%clk 0:02:40]} 7. Bc4 {[%clk 0:02:57.7]} 7... b6 {[%clk 0:02:10.8]} 8. O-O
{[%clk 0:02:53.1]} 8... Bb7 {[%clk 0:02:10.3]} 9. Nc2 {[%clk 0:02:46.2]} 9...
Bxe3 {[%clk 0:01:57.7]} 10. Nxe3 {[%clk 0:02:46.1]} 10... Ne5 {[%clk 0:01:53]}
11. Bd5 {[%clk 0:02:31.6]} 11... c6 {[%clk 0:01:23.1]} 12. Bb3 {[%clk
0:02:29.6]} 12... g5 {[%clk 0:01:23.3]} 13. Re1 {[%clk 0:02:23.5]} 13... O-O-O
{[%clk 0:01:22.8]} 14. Nd2 {[%clk 0:02:20.2]} 14... h5 {[%clk 0:00:49.6]} 15.
Ndc4 {[%clk 0:02:18.4]} 15... Kc7 {[%clk 0:00:49.5]} 16. Nxe5 {[%clk 0:02:13.7]}
16... Qxe5 {[%clk 0:00:50.4]} 17. Nc4 {[%clk 0:02:13.9]} 17... Qc5 {[%clk
0:00:50]} 18. e5 {[%clk 0:02:04.2]} 18... g4 {[%clk 0:00:33.7]} 19. Qd6+ {[%clk
0:02:01]} 19... Kc8 {[%clk 0:00:31.3]} 20. Qxc5 {[%clk 0:01:58.9]} 20... bxc5
{[%clk 0:00:32.2]} 21. Nd6+ {[%clk 0:01:59]} 21... Kc7 {[%clk 0:00:32.2]} 22.
Nxf7 {[%clk 0:01:59.3]} 22... Ba6 {[%clk 0:00:24.4]} 23. Nxh8 {[%clk 0:01:57.2]}
23... Rxh8 {[%clk 0:00:24]} 24. e6 {[%clk 0:01:56.2]} 24... d5 {[%clk
0:00:23.9]} 25. Bd1 {[%clk 0:01:54.4]} 25... Kd6 {[%clk 0:00:23.9]} 26. Be2
{[%clk 0:01:54.4]} 26... Bc8 {[%clk 0:00:22.5]} 27. c4 {[%clk 0:01:51.3]} 27...
d4 {[%clk 0:00:17.7]} 28. Bd3 {[%clk 0:01:50.8]} 28... Bxe6 {[%clk 0:00:17.6]}
29. Re2 {[%clk 0:01:50.6]} 29... Bf7 {[%clk 0:00:04.2]} 30. Rae1 {[%clk
0:01:49.2]} 30... Nc8 {[%clk 0:00:03.6]} 31. b3 {[%clk 0:01:45.5]} 31... a5
{[%clk 0:00:03.6]} 32. Bf5 {[%clk 0:01:45.5]} 32... Nb6 {[%clk 0:00:03.7]} 33.
Re7 {[%clk 0:01:44.8]} 33... Rf8 {[%clk 0:00:03.2]} 34. Rb7 {[%clk 0:01:39.7]}
34... Bxc4 {[%clk 0:00:03.2]} 35. bxc4 {[%clk 0:01:33.1]} 35... Rxf5 {[%clk
0:00:01.8]} 36. Rxb6 {[%clk 0:01:32.3]} 36... d3 {[%clk 0:00:01.9]} 37. Rb3
{[%clk 0:01:29.1]} 37... Rf4 {[%clk 0:00:01.5]} 38. Rxd3+ {[%clk 0:01:28.5]}
38... Kc7 {[%clk 0:00:02.2]} 39. Rc1 {[%clk 0:01:25.3]} 39... a4 {[%clk
0:00:01.4]} 40. g3 {[%clk 0:01:24.2]} 40... Re4 {[%clk 0:00:01.8]} 41. Re3
{[%clk 0:01:20.3]} 41... Rd4 {[%clk 0:00:01.7]} 42. Re5 {[%clk 0:01:19.2]} 42...
Kb6 {[%clk 0:00:01.8]} 43. Rxh5 {[%clk 0:01:18.4]} 43... Rd2 {[%clk 0:00:02.4]}
44. Rb1+ {[%clk 0:01:15.5]} 44... Kc7 {[%clk 0:00:01.8]} 45. Rxc5 {[%clk
0:01:14.8]} 45... Rxa2 {[%clk 0:00:02.5]} 46. Ra5 {[%clk 0:01:12.7]} 1-0

[Event "Early-Titled-Tuesday-Blitz-January-23-2024"]
[Site "Chess.com"]
[Date "2024.01.23"]
[Round "8"]
[White "sergeikim"]
[Black "UK_23"]
[Result "1-0"]
[WhiteElo "2519"]
[BlackElo "2385"]
[TimeControl "180+1"]
[EndTime "9:27:37 PST"]
[Termination "sergeikim won by resignation"]

1. d4 {[%clk 0:02:56.9]} 1... d5 {[%clk 0:03:00.3]} 2. c4 {[%clk 0:02:56.8]}
2... c6 {[%clk 0:03:00.9]} 3. Nf3 {[%clk 0:02:55.6]} 3... Nf6 {[%clk 0:03:01.3]}
4. Qc2 {[%clk 0:02:55.5]} 4... dxc4 {[%clk 0:03:00.3]} 5. Qxc4 {[%clk 0:02:55]}
5... Bf5 {[%clk 0:03:00.9]} 6. e3 {[%clk 0:02:55.4]} 6... e6 {[%clk 0:03:01.3]}
7. Bd3 {[%clk 0:02:55.6]} 7... Bxd3 {[%clk 0:02:59.3]} 8. Qxd3 {[%clk
0:02:55.3]} 8... Be7 {[%clk 0:02:58.9]} 9. O-O {[%clk 0:02:54.8]} 9... O-O
{[%clk 0:02:59.4]} 10. Nc3 {[%clk 0:02:55]} 10... c5 {[%clk 0:02:58.5]} 11. Rd1
{[%clk 0:02:54.3]} 11... cxd4 {[%clk 0:02:57.9]} 12. Nxd4 {[%clk 0:02:54.3]}
12... a6 {[%clk 0:02:50.9]} 13. Qe2 {[%clk 0:02:53.1]} 13... Qc7 {[%clk
0:02:48.1]} 14. e4 {[%clk 0:02:53.1]} 14... Nc6 {[%clk 0:02:47.9]} 15. Nxc6
{[%clk 0:02:50.8]} 15... bxc6 {[%clk 0:02:41.8]} 16. Bg5 {[%clk 0:02:49.7]}
16... h6 {[%clk 0:02:41.3]} 17. Bh4 {[%clk 0:02:49.1]} 17... a5 {[%clk
0:02:27.4]} 18. e5 {[%clk 0:02:33.1]} 18... Nd5 {[%clk 0:02:27.1]} 19. Bxe7
{[%clk 0:02:32.8]} 19... Qxe7 {[%clk 0:02:28]} 20. Ne4 {[%clk 0:02:31.6]} 20...
Rab8 {[%clk 0:02:19.3]} 21. Rac1 {[%clk 0:02:28.5]} 21... Rfc8 {[%clk
0:02:12.2]} 22. b3 {[%clk 0:02:20.6]} 22... a4 {[%clk 0:01:59]} 23. Nd6 {[%clk
0:02:14.3]} 23... Rc7 {[%clk 0:01:56.9]} 24. bxa4 {[%clk 0:02:02]} 24... Qg5
{[%clk 0:01:39.2]} 25. Rc4 {[%clk 0:01:52.8]} 25... h5 {[%clk 0:01:25.6]} 26. h4
{[%clk 0:01:50.8]} 26... Qg6 {[%clk 0:01:23.1]} 27. Rdc1 {[%clk 0:01:45.4]}
27... Rb1 {[%clk 0:01:20.4]} 28. Qf3 {[%clk 0:01:38.3]} 28... Nb6 {[%clk
0:01:05.3]} 29. Rc2 {[%clk 0:01:21.2]} 29... Rxc1+ {[%clk 0:00:55]} 30. Rxc1
{[%clk 0:01:20.6]} 30... Nxa4 {[%clk 0:00:55.7]} 31. Rxc6 {[%clk 0:01:14.6]}
31... Rxc6 {[%clk 0:00:55.7]} 32. Qxc6 {[%clk 0:01:14.5]} 32... Nb2 {[%clk
0:00:52.1]} 33. Qe8+ {[%clk 0:01:08.8]} 33... Kh7 {[%clk 0:00:52.2]} 34. Qxf7
{[%clk 0:01:08]} 34... Qg4 {[%clk 0:00:37.7]} 35. Ne8 {[%clk 0:01:03.7]} 35...
Kh8 {[%clk 0:00:32.8]} 36. Qf8+ {[%clk 0:00:54.8]} 36... Kh7 {[%clk 0:00:32.9]}
37. Qe7 {[%clk 0:00:53.7]} 37... Kh8 {[%clk 0:00:31.7]} 38. Qg5 {[%clk 0:00:50]}
38... Qxg5 {[%clk 0:00:18]} 39. hxg5 {[%clk 0:00:50.1]} 39... Kh7 {[%clk
0:00:18.8]} 40. Nc7 {[%clk 0:00:47.7]} 40... Kg6 {[%clk 0:00:18.8]} 41. Nxe6
{[%clk 0:00:47]} 41... Kf5 {[%clk 0:00:19.4]} 42. Nxg7+ {[%clk 0:00:43.2]} 42...
Kxe5 {[%clk 0:00:19.7]} 43. Nxh5 {[%clk 0:00:42.3]} 43... Kf5 {[%clk 0:00:20.4]}
44. f4 {[%clk 0:00:39.8]} 44... Kg4 {[%clk 0:00:20.6]} 45. g6 {[%clk 0:00:39.5]}
1-0

[Event "Early-Titled-Tuesday-Blitz-January-23-2024"]
[Site "Chess.com"]
[Date "2024.01.23"]
[Round "8"]
[White "Irishchessman16"]
[Black "Roman_Ovetchkin"]
[Result "1-0"]
[WhiteElo "2507"]
[BlackElo "2626"]
[TimeControl "180+1"]
[EndTime "9:27:38 PST"]
[Termination "Irishchessman16 won on time"]

1. d4 {[%clk 0:03:00.9]} 1... Nf6 {[%clk 0:02:59]} 2. c4 {[%clk 0:03:01]} 2...
c5 {[%clk 0:02:56.4]} 3. d5 {[%clk 0:02:59.4]} 3... b5 {[%clk 0:02:56.9]} 4.
cxb5 {[%clk 0:02:58.9]} 4... a6 {[%clk 0:02:57.3]} 5. e3 {[%clk 0:02:59.4]} 5...
g6 {[%clk 0:02:56.7]} 6. Nc3 {[%clk 0:02:58.3]} 6... Bg7 {[%clk 0:02:57.1]} 7.
Nf3 {[%clk 0:02:54.8]} 7... O-O {[%clk 0:02:56.9]} 8. a4 {[%clk 0:02:52.4]} 8...
d6 {[%clk 0:02:56.5]} 9. e4 {[%clk 0:02:51.5]} 9... axb5 {[%clk 0:02:51.4]} 10.
Bxb5 {[%clk 0:02:50.7]} 10... Na6 {[%clk 0:02:42.7]} 11. O-O {[%clk 0:02:47.1]}
11... Bg4 {[%clk 0:02:42.3]} 12. h3 {[%clk 0:02:30.1]} 12... Bxf3 {[%clk
0:02:41.4]} 13. Qxf3 {[%clk 0:02:31]} 13... Nb4 {[%clk 0:02:41.6]} 14. Qe2
{[%clk 0:02:27.9]} 14... Nd7 {[%clk 0:02:35.6]} 15. Bf4 {[%clk 0:02:27.4]} 15...
Ne5 {[%clk 0:02:30.9]} 16. Bh2 {[%clk 0:02:25.8]} 16... g5 {[%clk 0:02:22.9]}
17. f4 {[%clk 0:02:22.6]} 17... gxf4 {[%clk 0:02:22.5]} 18. Rxf4 {[%clk
0:02:19]} 18... e6 {[%clk 0:02:17.1]} 19. Raf1 {[%clk 0:02:12.7]} 19... Qg5
{[%clk 0:02:14.3]} 20. dxe6 {[%clk 0:02:02.4]} 20... fxe6 {[%clk 0:02:12.8]} 21.
Rxf8+ {[%clk 0:02:02.4]} 21... Bxf8 {[%clk 0:02:07.6]} 22. Bf4 {[%clk 0:02:01]}
22... Qg7 {[%clk 0:02:02.1]} 23. Qd1 {[%clk 0:01:48.5]} 23... Be7 {[%clk
0:01:27.6]} 24. Qb3 {[%clk 0:01:47.6]} 24... Qf6 {[%clk 0:01:12.1]} 25. Ne2
{[%clk 0:01:34.1]} 25... Kh8 {[%clk 0:01:05.2]} 26. Bh2 {[%clk 0:01:26.5]} 26...
Qh6 {[%clk 0:01:00.4]} 27. Nf4 {[%clk 0:01:20.1]} 27... Bg5 {[%clk 0:00:23.9]}
28. Nxe6 {[%clk 0:01:11.8]} 28... Be3+ {[%clk 0:00:22.9]} 29. Kh1 {[%clk
0:01:11.8]} 29... Rg8 {[%clk 0:00:19.4]} 30. Nf4 {[%clk 0:01:02.5]} 30... Bd4
{[%clk 0:00:15.5]} 31. Ne2 {[%clk 0:00:53.1]} 31... Qd2 {[%clk 0:00:11]} 32. Bf4
{[%clk 0:00:48.9]} 32... Qxb2 {[%clk 0:00:05.4]} 33. Qe6 {[%clk 0:00:41.9]}
33... Ng6 {[%clk 0:00:01]} 34. Bc4 {[%clk 0:00:32.9]} 1-0